bitfinex-derivatives/quotes_SOLF0:USTF0_20250829
["timestamp","ask_amount","ask_price","bid_price","bid_amount"]
[1756471984582,7.3,211.66,211.52,4.2544]
[1756471984782,7.3,211.66,211.53,7.42]
[1756471986088,19.21433935,211.67,211.53,7.42]
[1756471986391,134.76,211.69,211.53,7.42]
[1756471986582,134.76,211.69,211.54,4.2541]
[1756471986783,134.76,211.69,211.53,7.42]
[1756471986983,317.54,211.76,211.53,7.42]
[1756471987184,134.72,211.75,211.53,11.20823783]
[1756471987382,134.72,211.75,211.61,7.26]
[1756471987586,317.54,211.76,211.61,7.26]
[1756471987787,452.24,211.76,211.61,7.26]
[1756471989387,452.24,211.76,211.63,4.2521]
[1756471989692,452.24,211.76,211.61,7.26]
[1756471990084,452.24,211.76,211.62,4.2525]
[1756471990392,452.24,211.76,211.61,7.26]
[1756471990592,317.54,211.76,211.67,4.2514]
[1756471990887,317.54,211.76,211.67,7.26]
[1756471991091,317.54,211.76,211.67,11.5115]
[1756471991695,317.54,211.76,211.67,7.26]
[1756471992995,317.54,211.76,211.68,4.2512]
[1756471993197,7.68,211.77,211.68,4.2512]
[1756471993393,7.68,211.83,211.67,7.26]
[1756471993595,134.5,211.82,211.67,7.26]
[1756471993997,134.5,211.82,211.68,4.2511]
[1756471994999,134.5,211.82,211.7,4.2509]
[1756471997299,7.68,211.83,211.65,3.78823783]
[1756471997492,7.68,211.83,211.7,7.26]
[1756471997894,459.52,211.88,211.7,7.26]
[1756471998098,459.52,211.88,211.75,7.26]
[1756471998397,0.82162673,211.94,211.75,7.26]
[1756471998604,142.02,211.93,211.79,4.2491]
[1756471998798,142.02,211.93,211.75,7.26]
[1756471999403,142.02,211.93,211.8,4.2487]
[1756472000097,142.02,211.93,211.79,7.26]
[1756472000294,142.02,211.93,211.79,19.21433935]
[1756472000504,142.02,211.93,211.84,4.2479]
[1756472000900,7.68,211.93,211.8,7.26]
[1756472001301,134.24,211.96,211.8,7.26]
[1756472001500,7.68,211.98,211.8,7.26]
[1756472001701,7.68,212.08,211.85,7.26]
[1756472002005,134.2,212.07,211.9,7.26]
[1756472002204,134.2,212.07,211.99,4.2451]
[1756472002601,7.68,212.08,211.99,4.2451]
[1756472003003,7.68,212.08,211.96,7.26]
[1756472003703,318.18099676,212.12,211.96,7.26]
[1756472004203,141.86,212.13,211.96,7.26]
[1756472004609,141.86,212.13,211.97,62.0]
[1756472004809,141.86,212.13,211.97,66.2453]
[1756472005402,7.68,212.12,211.97,62.0]
[1756472005809,7.68,212.12,211.96,7.26]
[1756472008710,107.64,212.12,211.96,7.26]
[1756472009706,7.68,212.11,211.89,7.26]
[1756472010110,7.68,212.11,211.93,4.2462]
[1756472010307,99.96,212.12,211.93,11.5062]
[1756472011110,7.68,212.11,211.9,4.2467]
[1756472011310,7.68,212.05,211.9,4.2467]
[1756472012314,7.68,212.05,211.92,4.2464]
[1756472012514,7.68,212.05,211.9,7.26]
[1756472012915,7.68,212.05,211.92,4.2465]
[1756472013516,7.68,212.05,211.96,4.2456]
[1756472013717,0.82080311,212.13,211.92,7.26]
[1756472013718,7.68,212.12,211.92,7.26]
[1756472014114,7.68,212.12,211.95,11.425468]
[1756472014309,7.68,212.12,211.96,7.26]
[1756472014711,7.68,212.12,211.97,7.26]
[1756472015113,7.68,212.12,211.96,11.425468]
[1756472015114,7.68,212.12,212.03,4.2443]
[1756472015516,7.68,212.12,212.0,7.26]
[1756472015812,7.68,212.12,212.04,4.2441]
[1756472016318,7.68,212.12,212.01,4.2445]
[1756472017324,7.68,212.12,212.02,4.2443]
[1756472017514,7.68,212.12,212.0,69.26]
[1756472018015,7.68,212.12,212.0,7.26]
[1756472018818,7.68,212.12,212.03,4.2441]
[1756472020011,7.68,212.12,211.96,23.4]
[1756472020012,7.58,212.17,212.04,11.8539]
[1756472021813,7.58,212.17,212.04,7.61]
[1756472022425,7.58,212.17,211.97,7.61]
[1756472024814,7.58,212.17,211.98,7.61]
[1756472025021,133.32,212.22,212.0,7.61]
[1756472025318,7.58,212.21,212.09,7.61]
[1756472025518,7.58,212.22,212.02,7.61]
[1756472025720,7.58,212.2,212.02,7.61]
[1756472026019,133.32,212.23,212.02,7.61]
[1756472026020,7.58,212.15,212.02,7.61]
[1756472026319,140.86,212.15,212.02,7.61]
[1756472026519,140.86,212.15,212.0,4.2449]
[1756472026923,7.58,212.1,211.97,7.61]
[1756472027725,7.58,212.1,211.97,11.8553]
[1756472027924,7.58,212.1,211.97,7.61]
[1756472028420,7.58,212.1,211.92,7.61]
[1756472028826,7.58,212.1,211.97,4.2453]
[1756472029027,74.86,212.09,211.97,4.2453]
[1756472029326,101.2,212.08,211.97,4.2453]
[1756472029622,101.2,212.08,211.88,62.0]
[1756472029623,101.2,212.08,211.98,4.2451]
[1756472030322,7.58,212.1,211.98,4.2451]
[1756472030521,7.58,212.1,211.95,7.61]
[1756472030922,7.58,212.1,212.01,4.2447]
[1756472031118,7.58,212.1,211.95,7.61]
[1756472031726,7.58,212.1,211.98,4.2451]
[1756472032020,7.58,212.1,211.95,7.61]
[1756472032924,7.58,212.1,211.97,4.2454]
[1756472034224,7.58,212.09,211.91,7.61]
[1756472036327,7.58,212.09,211.98,4.2451]
[1756472036730,7.58,212.11,211.88,7.61]
[1756472037324,11.42332877,212.07,211.9,7.61]
[1756472037528,7.58,212.06,211.9,7.61]
[1756472037921,7.58,212.06,211.97,4.2453]
[1756472039431,7.58,212.06,211.95,7.61]
[1756472039627,7.58,212.06,211.91,11.42332877]
[1756472040228,7.58,212.06,211.94,4.2459]
[1756472040923,7.58,212.06,211.96,4.2456]
[1756472041133,7.58,212.06,211.93,7.61]
[1756472042435,7.58,212.06,211.92,4.2463]
[1756472042628,7.58,212.06,211.91,3.78823783]
[1756472042828,7.58,212.02,211.88,7.61]
[1756472043131,139.7,212.02,211.88,7.61]
[1756472043331,7.58,211.98,211.86,3.78823783]
[1756472043635,7.58,211.98,211.86,4.2477]
[1756472043830,7.58,211.98,211.85,3.78823783]
[1756472044033,7.58,211.98,211.87,3.78823783]
[1756472044629,7.58,211.98,211.86,3.78823783]
[1756472044831,132.76,212.02,211.85,3.78823783]
[1756472044832,7.58,211.95,211.85,3.78823783]
[1756472045129,7.58,211.91,211.82,3.78823783]
[1756472045327,7.58,211.91,211.79,4.99654666]
[1756472045328,11.42332877,211.9,211.8,3.78823783]
[1756472045533,11.42332877,211.86,211.78,3.78823783]
[1756472045734,11.42332877,211.86,211.77,3.78823783]
[1756472046130,11.42332877,211.86,211.77,4.2493]
[1756472046326,7.58,211.85,211.74,11.39823783]
[1756472046527,11.42332877,211.82,211.73,3.78823783]
[1756472046726,7.58,211.85,211.75,3.78823783]
[1756472047127,7.58,211.85,211.74,15.27823783]
[1756472047633,7.58,211.85,211.74,11.49]
[1756472048245,7.58,211.85,211.76,4.2496]
[1756472048536,7.58,211.85,211.74,7.24]
[1756472049433,7.11,211.81,211.7,3.78823783]
[1756472049633,7.11,211.81,211.69,11.02823783]
[1756472049828,7.11,211.86,211.7,3.78823783]
[1756472050033,7.11,211.86,211.72,3.78823783]
[1756472050235,11.42332877,211.89,211.73,7.24]
[1756472050426,7.11,211.91,211.8,7.24]
[1756472051339,7.11,211.91,211.82,4.2485]
[1756472052136,7.11,211.91,211.8,7.24]
[1756472052740,7.11,211.91,211.81,4.2487]
[1756472055030,7.11,211.91,211.8,7.24]
[1756472055240,7.11,211.94,211.8,7.24]
[1756472056538,11.42332877,211.93,211.8,7.24]
[1756472056741,7.11,211.88,211.75,69.24]
[1756472057039,7.11,211.88,211.78,4.2493]
[1756472057437,7.11,211.88,211.75,7.24]
[1756472058130,24.46,211.94,211.75,7.24]
[1756472058336,24.46,211.94,211.77,11.42332877]
[1756472058536,37.95,211.95,211.78,7.24]
[1756472058736,7.11,211.95,211.78,7.24]
[1756472058935,7.11,211.95,211.87,4.2473]
[1756472059136,11.42332877,212.0,211.82,7.24]
[1756472059339,18.53332877,212.0,211.82,7.24]
[1756472060239,7.11,211.99,211.85,4.2477]
[1756472062041,7.11,211.99,211.86,4.2475]
[1756472062243,132.32,211.98,211.86,4.2475]
[1756472063242,7.11,211.95,211.82,7.24]
[1756472063543,7.11,211.91,211.76,7.24]
[1756472064243,7.11,211.91,211.82,4.2485]
[1756472064440,7.11,211.91,211.76,7.24]
[1756472064441,11.42332877,211.9,211.76,7.24]
[1756472064647,7.11,211.89,211.76,7.24]
[1756472064945,7.11,211.89,211.79,4.2489]
[1756472065337,7.11,211.89,211.76,7.24]
[1756472065338,7.11,211.89,211.8,4.2487]
[1756472065546,7.11,211.89,211.76,7.24]
[1756472066235,7.11,211.89,211.76,69.24]
[1756472066748,7.11,211.89,211.76,7.24]
[1756472067139,18.53332877,211.89,211.76,7.24]
[1756472067948,59.65332877,211.89,211.76,7.24]
[1756472068345,59.65332877,211.89,211.77,4.2494]
[1756472068552,18.53332877,211.89,211.76,7.24]
[1756472069752,18.53332877,211.89,211.76,11.4896]
[1756472069951,7.11,211.88,211.76,7.24]
[1756472070951,7.11,211.88,211.81,4.2485]
[1756472071150,11.42332877,211.93,211.81,7.24]
[1756472071344,18.53332877,212.12,211.99,4.2451]
[1756472071543,7.11,212.12,211.98,7.24]
[1756472071954,7.11,212.12,212.04,4.2441]
[1756472072146,7.11,212.2,212.04,7.24]
[1756472072351,7.11,212.2,212.07,11.42332877]
[1756472072555,7.11,212.2,212.03,18.66332877]
[1756472072746,7.11,212.22,212.03,7.24]
[1756472072952,11.42332877,212.17,212.03,7.24]
[1756472073150,7.11,212.16,212.03,7.24]
[1756472073754,7.11,212.16,212.04,4.2441]
[1756472074052,7.11,212.16,212.03,7.24]
[1756472074257,7.11,212.16,212.03,69.24]
[1756472074657,11.42332877,212.19,212.06,4.2436]
[1756472074855,11.42332877,212.19,212.03,69.24]
[1756472075351,11.42332877,212.19,212.05,4.2438]
[1756472075552,11.42332877,212.19,212.03,69.24]
[1756472075758,7.11,212.18,212.04,4.2441]
[1756472076656,7.11,212.18,212.03,7.24]
[1756472077059,11.42332877,212.11,211.98,7.59]
[1756472077257,7.16,212.1,211.98,7.59]
[1756472077653,11.42332877,212.07,211.91,3.78823783]
[1756472077959,7.16,212.06,211.89,7.59]
[1756472078360,7.16,212.06,211.91,4.2466]
[1756472078956,7.16,212.06,211.89,7.59]
[1756472079458,7.16,212.06,211.9,4.2469]
[1756472080956,7.16,212.01,211.86,4.2475]
[1756472081364,7.16,212.01,211.85,7.59]
[1756472081568,7.16,212.01,211.88,4.2472]
[1756472081865,7.16,212.08,211.89,7.59]
[1756472082062,7.16,212.08,211.96,4.2456]
[1756472082367,7.16,212.08,211.96,7.59]
[1756472084370,7.16,212.08,211.97,4.2455]
[1756472084863,7.16,212.08,211.96,7.59]
[1756472085065,7.16,212.08,211.99,4.245]
[1756472085660,7.16,212.08,211.96,11.8355]
[1756472085866,7.16,212.08,211.96,7.59]
[1756472087664,7.16,212.08,211.98,4.2452]
[1756472088067,7.16,212.08,211.96,7.59]
[1756472088263,7.16,212.14,211.96,7.59]
[1756472089673,7.16,212.14,212.02,4.2444]
[1756472090074,7.16,212.14,211.96,7.59]
[1756472091072,7.16,212.14,212.03,4.2443]
[1756472091673,7.16,212.14,212.01,7.59]
[1756472091877,19.44,212.18,211.95,7.59]
[1756472091878,7.16,212.11,211.95,7.59]
[1756472092076,7.16,212.07,211.89,3.75454358]
[1756472092277,7.16,212.07,211.9,69.59]
[1756472092682,11.42332877,212.04,211.9,69.59]
[1756472092877,7.16,212.03,211.9,7.59]
[1756472093073,7.16,212.03,211.91,4.2466]
[1756472094177,7.16,212.03,211.9,7.59]
[1756472094178,7.16,212.03,211.93,4.2463]
[1756472094485,7.16,212.03,211.9,7.59]
[1756472096480,7.16,212.03,211.91,4.2465]
[1756472097284,7.16,212.03,211.93,4.2463]
[1756472098185,7.16,212.03,211.9,7.59]
[1756472098878,7.16,212.03,211.92,4.2465]
[1756472099074,7.16,212.03,211.9,7.59]
[1756472100584,11.42332877,212.01,211.9,7.59]
[1756472100786,7.16,212.0,211.91,4.2467]
[1756472100986,7.16,212.0,211.85,7.59]
[1756472101382,7.16,211.96,211.85,7.59]
[1756472101583,7.16,211.96,211.8,7.59]
[1756472102087,7.16,211.92,211.81,4.2485]
[1756472102481,11.42332877,211.89,211.78,4.2491]
[1756472102678,7.16,211.88,211.75,7.59]
[1756472104689,7.16,211.88,211.79,4.249]
[1756472105590,7.16,211.88,211.75,7.59]
[1756472106291,7.16,211.88,211.81,4.2487]
[1756472106684,7.16,211.88,211.75,7.59]
[1756472106879,7.6,211.94,211.76,7.43]
[1756472107081,7.6,211.94,211.78,7.43]
[1756472107283,7.6,211.94,211.79,7.43]
[1756472107680,19.02332877,212.01,211.8,7.43]
[1756472107882,7.6,212.01,211.84,7.43]
[1756472108078,19.02332877,212.06,211.87,7.43]
[1756472108790,7.6,212.06,211.9,11.42332877]
[1756472108986,7.6,212.06,211.91,7.43]
[1756472109595,7.6,212.06,211.95,7.43]
[1756472111393,7.6,212.06,212.0,4.2447]
[1756472111784,7.6,212.06,211.95,7.43]
[1756472113688,7.6,212.06,211.99,4.2449]
[1756472116990,7.6,212.06,211.97,4.2455]
[1756472117589,7.6,212.06,211.98,4.2451]
[1756472119492,7.6,212.06,211.99,4.2449]
[1756472120497,7.6,212.06,211.95,7.43]
[1756472120498,7.6,212.06,211.97,4.2455]
[1756472120892,7.6,212.06,211.95,7.43]
[1756472122493,7.6,212.04,211.88,3.75454358]
[1756472122693,7.6,212.04,211.85,4.99654666]
[1756472122694,7.6,211.99,211.87,3.75454358]
[1756472122890,7.6,211.97,211.81,3.75454358]
[1756472123294,7.6,211.94,211.8,3.75454358]
[1756472123498,7.6,211.94,211.8,4.2489]
[1756472123799,7.6,211.99,211.81,7.43]
[1756472124101,7.6,211.99,211.86,7.43]
[1756472124895,7.6,211.99,211.89,4.2471]
[1756472126399,10.24,212.0,211.86,3.75454358]
[1756472126601,10.24,212.0,211.88,3.75454358]
[1756472126901,10.24,212.0,211.87,11.18454358]
[1756472127297,10.24,212.0,211.91,4.2465]
[1756472127604,10.24,212.0,211.88,3.75454358]
[1756472127800,10.24,212.0,211.87,11.18454358]
[1756472128200,7.6,211.99,211.87,7.43]
[1756472129096,7.6,211.99,211.84,3.75454358]
[1756472129297,26.68507939,211.99,211.83,8.00284358]
[1756472129498,26.68507939,211.99,211.83,4.2483]
[1756472129799,7.6,211.98,211.84,4.2479]
[1756472130002,7.6,211.98,211.82,11.18454358]
[1756472130195,7.6,211.98,211.82,7.43]
[1756472130400,36.92,211.98,211.82,7.43]
[1756472130902,54.22,211.98,211.86,4.2475]
[1756472131801,54.22,211.98,211.82,7.43]
[1756472131802,7.6,211.98,211.82,7.43]
[1756472132003,7.6,212.1,211.86,7.43]
[1756472132298,7.6,212.06,211.97,4.2453]
[1756472132494,7.6,212.06,211.91,7.43]
[1756472133202,7.6,212.06,211.95,4.2457]
[1756472133802,7.6,212.06,211.93,4.2463]
[1756472133997,7.6,212.06,211.91,7.43]
[1756472134797,7.6,212.03,211.91,7.43]
[1756472135102,7.6,212.03,211.87,3.75454358]
[1756472136205,7.6,212.03,211.88,11.18454358]
[1756472136403,7.6,212.03,211.89,3.75454358]
[1756472136601,7.59,212.01,211.88,3.75454358]
[1756472136805,18.76,212.07,211.85,11.00454358]
[1756472136806,7.59,211.97,211.85,11.00454358]
[1756472137204,19.01218901,212.02,211.86,3.75454358]
[1756472137400,19.01218901,212.02,211.87,7.25]
[1756472137605,19.01218901,212.02,211.94,4.2459]
[1756472138105,7.59,212.02,211.89,3.75454358]
[1756472138500,7.59,212.02,211.88,73.00454358]
[1756472139303,7.59,212.02,211.88,11.00454358]
[1756472139503,11.42218901,211.96,211.86,3.75454358]
[1756472139703,11.42218901,211.96,211.88,4.2472]
[1756472141012,7.59,211.9,211.77,3.75454358]
[1756472141207,7.59,211.9,211.76,3.75454358]
[1756472141604,7.59,211.92,211.74,11.00454358]
[1756472141806,19.12510914,211.93,211.74,11.00454358]
[1756472142010,7.59,211.92,211.78,4.2493]
[1756472142204,7.59,211.92,211.74,11.00454358]
[1756472142409,113.01,211.92,211.76,3.75454358]
[1756472142803,7.59,211.86,211.71,3.75454358]
[1756472143007,19.12510914,211.79,211.71,7.25]
[1756472143207,19.12510914,211.79,211.72,4.2505]
[1756472144107,19.12510914,211.79,211.73,4.2501]
[1756472144708,19.12510914,211.79,211.71,7.25]
[1756472145807,19.12510914,211.79,211.71,11.5005]
[1756472146012,19.12510914,211.79,211.71,7.25]
[1756472146615,19.12510914,211.79,211.66,73.00454358]
[1756472147006,19.12510914,211.79,211.7,4.2507]
[1756472147610,7.59,211.78,211.68,4.2513]
[1756472147816,26.71510914,211.74,211.61,11.00454358]
[1756472148016,26.71510914,211.74,211.61,7.25]
[1756472149716,26.71510914,211.79,211.61,7.25]
[1756472150019,26.71510914,211.79,211.62,7.25]
[1756472150219,19.12510914,211.74,211.62,7.25]
[1756472150421,317.02,211.96,211.62,7.25]
[1756472150422,19.12510914,211.81,211.62,7.25]
[1756472150714,7.59,211.8,211.64,4.2519]
[1756472151219,7.59,211.8,211.63,62.0]
[1756472151414,7.59,211.8,211.65,4.2517]
[1756472151613,19.12510914,211.81,211.63,62.0]
[1756472151614,7.59,211.79,211.63,62.0]
[1756472151816,7.59,211.8,211.62,7.25]
[1756472152421,19.12510914,211.76,211.62,7.25]
[1756472152620,7.59,211.75,211.63,4.2521]
[1756472153114,7.59,211.75,211.62,7.25]
[1756472154121,19.12510914,211.71,211.62,7.25]
[1756472154823,26.71510914,211.71,211.62,7.25]
[1756472155320,26.71510914,211.71,211.58,4.2532]
[1756472155520,26.71510914,211.71,211.56,7.25]
[1756472156221,26.71510914,211.71,211.59,4.2529]
[1756472156420,7.59,211.59,211.47,3.77197578]
[1756472156618,7.59,211.59,211.39,5.02930104]
[1756472156619,7.59,211.53,211.39,4.2571]
[1756472157126,7.59,211.53,211.29,4.86293822]
[1756472158527,7.59,211.53,211.41,4.2567]
[1756472159625,7.59,211.53,211.38,7.25]
[1756472159828,7.59,211.53,211.31,7.25]
[1756472160028,7.59,211.48,211.31,7.25]
[1756472161624,7.59,211.48,211.23,19.12510914]
[1756472161625,19.12510914,211.44,211.23,7.25]
[1756472161823,7.59,211.43,211.23,7.25]
[1756472163025,44.49,211.43,211.28,4.2589]
[1756472163330,63.61510914,211.43,211.28,4.2589]
[1756472163932,63.61510914,211.43,211.27,7.25]
[1756472164427,7.59,211.42,211.27,73.5092]
[1756472164725,7.59,211.42,211.27,7.25]
[1756472165121,7.59,211.42,211.3,4.2586]
[1756472166029,317.58,211.46,211.26,7.25]
[1756472166226,7.59,211.45,211.26,7.25]
[1756472166826,7.59,211.45,211.3,7.77]
[1756472167028,336.70510914,211.46,211.23,7.77]
[1756472167327,7.71,211.4,211.24,4.2598]
[1756472167533,7.71,211.39,211.24,66.2598]
[1756472167831,130.26,211.38,211.24,66.2598]
[1756472168034,7.71,211.37,211.24,66.2598]
[1756472168423,7.71,211.37,211.23,7.77]
[1756472169930,130.26,211.43,211.23,7.77]
[1756472170834,7.71,211.42,211.23,7.77]
[1756472171234,7.71,211.42,211.3,4.2586]
[1756472171630,19.12510914,211.42,211.24,62.0]
[1756472171832,19.12510914,211.42,211.23,12.0301]
[1756472172229,7.71,211.41,211.23,7.77]
[1756472172424,130.26,211.4,211.23,7.77]
[1756472172632,7.71,211.39,211.23,7.77]
[1756472173130,7.71,211.39,211.24,4.2597]
[1756472173533,7.71,211.39,211.23,7.77]
[1756472174735,7.71,211.39,211.23,69.77]
[1756472175435,317.58,211.46,211.16,7.77]
[1756472175436,7.71,211.33,211.16,7.77]
[1756472178431,19.12510914,211.28,211.1,7.77]
[1756472178642,7.71,211.26,211.1,7.77]
[1756472179132,7.71,211.26,211.1,12.0326]
[1756472179838,7.71,211.26,211.1,7.77]
[1756472181134,22.18,211.32,211.1,7.77]
[1756472181334,7.71,211.31,211.1,7.77]
[1756472181531,7.71,211.31,211.12,7.77]
[1756472181732,7.71,211.27,211.01,7.77]
[1756472182037,7.71,211.22,211.01,7.77]
[1756472182733,7.71,211.22,211.07,7.77]
[1756472184539,7.71,211.22,211.08,62.0]
[1756472184935,7.71,211.22,211.0,90.84246747]
[1756472184936,7.71,211.18,211.02,7.77]
[1756472186337,7.71,211.18,211.03,7.77]
[1756472186640,7.71,211.18,211.0,16.3]
[1756472186641,7.71,211.29,211.08,7.77]
[1756472187542,7.71,211.29,211.23,4.2601]
[1756472188037,26.83510914,211.29,211.09,7.77]
[1756472188236,317.96,211.3,210.96,23.0]
[1756472188237,130.82,211.28,211.0,23.92510914]
[1756472188440,19.12510914,211.24,211.01,7.77]
[1756472188643,138.53,211.23,211.01,7.77]
[1756472189340,7.71,211.18,211.01,7.77]
[1756472189637,50.26,211.28,211.11,7.77]
[1756472189839,7.71,211.27,211.11,7.77]
[1756472191041,7.71,211.27,211.12,62.0]
[1756472192333,317.96,211.3,211.13,7.77]
[1756472192534,7.71,211.33,211.13,7.77]
[1756472193336,19.12510914,211.29,211.12,62.0]
[1756472193643,19.12510914,211.24,211.07,7.77]
[1756472193838,7.71,211.23,211.07,7.77]
[1756472194344,19.12510914,211.19,211.07,7.77]
[1756472194842,7.71,211.18,211.07,7.77]
[1756472195938,7.71,211.18,211.09,4.2629]
[1756472197039,7.71,211.18,210.96,23.0]
[1756472197243,7.12,211.13,210.97,7.31]
[1756472197840,19.12510914,211.21,210.97,7.31]
[1756472198045,7.12,211.2,211.05,7.31]
[1756472198241,7.12,211.2,210.99,19.12510914]
[1756472198540,51.29,211.25,210.99,19.12510914]
[1756472198738,7.12,211.26,211.11,4.2625]
[1756472198944,139.7,211.26,211.06,7.31]
[1756472199444,158.82510914,211.26,211.06,7.31]
[1756472200038,158.82510914,211.26,211.13,4.2619]
[1756472200345,7.12,211.25,211.07,62.0]
[1756472200946,7.12,211.25,211.11,4.2624]
[1756472201938,7.12,211.25,211.07,62.0]
[1756472202344,7.12,211.25,211.14,4.2617]
[1756472202545,7.12,211.25,211.07,62.0]
[1756472202947,7.12,211.25,211.13,4.2619]
[1756472203247,132.24,211.24,211.07,62.0]
[1756472203443,7.12,211.21,211.06,7.31]
[1756472203945,5.20899965,211.44,211.12,11.51650636]
[1756472204144,318.2,211.52,211.25,11.51650636]
[1756472204448,7.12,211.47,211.36,4.2574]
[1756472204849,7.12,211.47,211.3,7.31]
[1756472205049,7.12,211.47,211.35,4.2576]
[1756472205250,7.12,211.47,211.3,7.31]
[1756472206048,7.12,211.47,211.36,4.2574]
[1756472206249,7.12,211.47,211.3,7.31]
[1756472206549,7.12,211.47,211.31,62.0]
[1756472206948,7.12,211.47,211.3,26.51011954]
[1756472207148,7.12,211.47,211.31,7.31]
[1756472207648,7.12,211.47,211.37,4.2572]
[1756472208046,7.12,211.47,211.31,7.31]
[1756472209159,40.53011954,211.47,211.2,12.30940462]
[1756472209451,7.12,211.33,211.2,7.31]
[1756472213459,19.20011954,211.24,211.13,7.31]
[1756472213758,7.12,211.23,211.13,7.31]
[1756472214157,7.12,211.23,211.07,7.31]
[1756472214357,19.20011954,211.19,211.07,7.31]
[1756472215760,7.12,211.18,211.07,7.31]
[1756472217855,7.12,211.18,211.07,11.5732]
[1756472218059,19.20011954,211.2,211.07,7.31]
[1756472218561,151.30011954,211.22,211.07,7.31]
[1756472218760,151.30011954,211.22,211.09,4.2629]
[1756472219158,7.12,211.21,211.07,7.31]
[1756472220357,7.12,211.21,211.08,4.2631]
[1756472221459,7.12,211.21,211.03,65.82813543]
[1756472221664,7.12,211.16,211.03,62.0]
[1756472222360,7.12,211.16,211.04,7.31]
[1756472222565,19.20011954,211.21,211.04,7.31]
[1756472223061,19.20011954,211.16,211.04,7.31]
[1756472223462,7.12,211.15,211.04,7.31]
[1756472224665,7.12,211.15,211.04,11.5738]
[1756472225159,7.12,211.15,211.04,7.31]
[1756472225366,7.12,211.15,210.99,3.82813543]
[1756472225664,7.12,211.15,210.98,11.13813543]
[1756472225864,318.08,211.27,211.0,3.82813543]
[1756472226063,7.12,211.24,211.03,7.31]
[1756472226261,7.12,211.24,211.05,7.31]
[1756472226467,7.12,211.24,211.0,4.99940462]
[1756472226468,7.12,211.19,211.0,3.82813543]
[1756472226667,7.12,211.19,211.0,7.38]
[1756472227764,7.12,211.19,211.0,11.20813543]
[1756472227765,131.84,211.18,211.0,11.20813543]
[1756472228562,85.66,211.17,211.0,11.20813543]
[1756472228767,7.12,211.19,211.01,3.82813543]
[1756472228964,93.26,211.19,211.02,11.20813543]
[1756472229168,93.26,211.19,211.03,7.38]
[1756472229362,93.26,211.19,211.04,62.0]
[1756472229559,8.6373434,211.26,211.07,7.38]
[1756472229763,7.63,211.24,211.11,7.38]
[1756472230659,7.63,211.31,211.19,4.2609]
[1756472231169,7.63,211.31,211.17,7.38]